[Event "December 12 Late 2023"]
[Site "https://www.chess.com"]
[Date "2023.12.12"]
[Round "5"]
[White "Andreikin, Dmitry"]
[Black "Melkumyan, Hrant"]
[Result "1/2-1/2"]
[Board "8"]
[TimeControl "180+1"]
[WhiteFideId "4158814"]
[BlackFideId "13302485"]
[WhiteElo "3106"]
[BlackElo "2907"]
[WhiteTeam "FID"]
[BlackTeam "ARM"]
[WhiteClock "0:00:05"]
[BlackClock "0:00:05"]

1. d4 {[%clk 0:03:00]}  d5 {[%clk 0:01:51]} 2. c4 {[%clk 0:02:57]}  e6 {[%clk 0:01:51]} 3. Nf3 {[%clk 0:02:56]}  Nf6 {[%clk 0:01:51]} 4. Bg5 {[%clk 0:02:56]}  Be7 {[%clk 0:01:51]} 5. e3 {[%clk 0:02:56]}  Nbd7 {[%clk 0:01:51]} 6. Qc2 {[%clk 0:02:50]}  h6 {[%clk 0:01:51]} 7. Bxf6 {[%clk 0:02:50]}  Nxf6 {[%clk 0:01:52]} 8. Nc3 {[%clk 0:02:48]}  O-O {[%clk 0:01:51]} 9. Rd1 {[%clk 0:02:41]}  c5 {[%clk 0:01:46]} 10. dxc5 {[%clk 0:02:39]}  Qa5 {[%clk 0:01:46]} 11. a3 {[%clk 0:02:38]}  dxc4 {[%clk 0:01:46]} 12. Bxc4 {[%clk 0:02:38]}  Qxc5 {[%clk 0:01:45]} 13. Ba2 {[%clk 0:02:35]}  b6 {[%clk 0:01:41]} 14. O-O {[%clk 0:02:30]}  Ba6 {[%clk 0:01:39]} 15. Rfe1 {[%clk 0:02:28]}  Rfd8 {[%clk 0:01:34]} 16. Qa4 {[%clk 0:02:24]}  Bb7 {[%clk 0:01:32]} 17. Rxd8+ {[%clk 0:02:18]}  Rxd8 {[%clk 0:01:24]} 18. Qxa7 {[%clk 0:02:12]}  Bxf3 {[%clk 0:01:24]} 19. gxf3 {[%clk 0:02:12]}  Rd2 {[%clk 0:01:18]} 20. Re2 {[%clk 0:02:04]}  Rd7 {[%clk 0:00:58]} 21. Qa8+ {[%clk 0:01:57]}  Bf8 {[%clk 0:00:52]} 22. f4 {[%clk 0:01:51]}  b5 {[%clk 0:00:46]} 23. Kg2 {[%clk 0:01:37]}  b4 {[%clk 0:00:43]} 24. axb4 {[%clk 0:01:37]}  Qxb4 {[%clk 0:00:44]} 25. Rc2 {[%clk 0:01:34]}  g6 {[%clk 0:00:39]} 26. Ne2 {[%clk 0:01:29]}  Qb7+ {[%clk 0:00:32]} 27. Qxb7 {[%clk 0:01:28]}  Rxb7 {[%clk 0:00:33]} 28. Nd4 {[%clk 0:01:19]}  Ne4 {[%clk 0:00:28]} 29. Bc4 {[%clk 0:01:08]}  Bg7 {[%clk 0:00:19]} 30. b3 {[%clk 0:00:55]}  Bxd4 {[%clk 0:00:18]} 31. exd4 {[%clk 0:00:56]}  Nd6 {[%clk 0:00:14]} 32. Kf3 {[%clk 0:00:56]}  Kg7 {[%clk 0:00:14]} 33. Ke3 {[%clk 0:00:50]}  Kf6 {[%clk 0:00:13]} 34. Kd3 {[%clk 0:00:51]}  Nf5 {[%clk 0:00:11]} 35. Kc3 {[%clk 0:00:46]}  Ne7 {[%clk 0:00:10]} 36. Kd3 {[%clk 0:00:35]}  Kf5 {[%clk 0:00:07]} 37. Ke3 {[%clk 0:00:35]}  Nd5+ {[%clk 0:00:07]} 38. Bxd5 {[%clk 0:00:29]}  exd5 {[%clk 0:00:08]} 39. Rb2 {[%clk 0:00:28]}  Rb4 {[%clk 0:00:07]} 40. h3 {[%clk 0:00:26]}  h5 {[%clk 0:00:07]} 41. Rb1 {[%clk 0:00:25]}  Ke6 {[%clk 0:00:05]} 42. Kd3 {[%clk 0:00:24]}  Kf5 {[%clk 0:00:05]} 43. Ke3 {[%clk 0:00:24]}  Ke6 {[%clk 0:00:05]} 44. Kd3 {[%clk 0:00:10]}  Kf5 {[%clk 0:00:06]} 45. Kc3 {[%clk 0:00:06]}  Rb5 {[%clk 0:00:06]} 46. b4 {[%clk 0:00:07]}  Kxf4 {[%clk 0:00:07]} 47. Ra1 {[%clk 0:00:07]}  Rb8 {[%clk 0:00:07]} 48. Ra5 {[%clk 0:00:08]}  Kf3 {[%clk 0:00:04]} 49. Rxd5 {[%clk 0:00:07]}  Kxf2 {[%clk 0:00:05]} 50. Rd7 {[%clk 0:00:05]}  f5 {[%clk 0:00:04]} 51. Rg7 {[%clk 0:00:05]}  f4 {[%clk 0:00:05]} 52. Rxg6 {[%clk 0:00:06]}  f3 {[%clk 0:00:05]} 53. Rg5 {[%clk 0:00:05]}  Ke2 {[%clk 0:00:04]} 54. Re5+ {[%clk 0:00:05]}  Kd1 {[%clk 0:00:04]} 55. Rxh5 {[%clk 0:00:03]}  f2 {[%clk 0:00:05]} 56. Rf5 {[%clk 0:00:04]}  Ke2 {[%clk 0:00:05]} 57. d5 {[%clk 0:00:03]}  f1=Q {[%clk 0:00:03]} 58. Rxf1 {[%clk 0:00:04]}  Kxf1 {[%clk 0:00:04]} 59. Kc4 {[%clk 0:00:05]}  Rh8 {[%clk 0:00:04]} 60. d6 {[%clk 0:00:04]}  Rh4+ {[%clk 0:00:02]} 61. Kc5 {[%clk 0:00:04]}  Rxh3 {[%clk 0:00:02]} 62. b5 {[%clk 0:00:03]}  Rc3+ {[%clk 0:00:02]} 63. Kd5 {[%clk 0:00:03]}  Rd3+ {[%clk 0:00:02]} 64. Kc6 {[%clk 0:00:03]}  Rc3+ {[%clk 0:00:03]} 65. Kb7 {[%clk 0:00:03]}  Rd3 {[%clk 0:00:03]} 66. Kc7 {[%clk 0:00:04]}  Rc3+ {[%clk 0:00:04]} 67. Kd8 {[%clk 0:00:04]}  Rb3 {[%clk 0:00:04]} 68. d7 {[%clk 0:00:05]}  Rxb5 {[%clk 0:00:04]} 69. Ke7 {[%clk 0:00:05]}  Rd5 {[%clk 0:00:05]} 70. Ke6 {[%clk 0:00:04]}  Rxd7 {[%clk 0:00:05]} 71. Kxd7 {[%clk 0:00:05]} 1/2-1/2

[Event "December 12 Late 2023"]
[Site "https://www.chess.com"]
[Date "2023.12.12"]
[Round "5"]
[White "Paravyan, David"]
[Black "Onyshchuk, Volodymyr"]
[Result "1-0"]
[Board "12"]
[TimeControl "180+1"]
[WhiteFideId "4194985"]
[BlackFideId "14114038"]
[WhiteElo "3029"]
[BlackElo "2772"]
[WhiteTeam "FID"]
[BlackTeam "UKR"]
[WhiteClock "0:00:19"]
[BlackClock "0:00:00"]

1. e4 {[%clk 0:03:00]}  d6 {[%clk 0:02:59]} 2. d4 {[%clk 0:02:59]}  Nf6 {[%clk 0:03:00]} 3. Nc3 {[%clk 0:02:59]}  g6 {[%clk 0:03:01]} 4. Nf3 {[%clk 0:02:52]}  Bg7 {[%clk 0:03:01]} 5. Be2 {[%clk 0:02:52]}  O-O {[%clk 0:03:01]} 6. O-O {[%clk 0:02:53]}  c6 {[%clk 0:03:00]} 7. a4 {[%clk 0:02:52]}  a5 {[%clk 0:02:59]} 8. Bg5 {[%clk 0:02:51]}  h6 {[%clk 0:02:55]} 9. Be3 {[%clk 0:02:50]}  Nbd7 {[%clk 0:02:46]} 10. h3 {[%clk 0:02:49]}  e5 {[%clk 0:02:39]} 11. dxe5 {[%clk 0:02:48]}  dxe5 {[%clk 0:02:39]} 12. Bc4 {[%clk 0:02:48]}  Qe7 {[%clk 0:02:38]} 13. Qe2 {[%clk 0:02:45]}  Nc5 {[%clk 0:02:33]} 14. Rfe1 {[%clk 0:02:41]}  Nfd7 {[%clk 0:01:36]} 15. Nd2 {[%clk 0:02:40]}  Ne6 {[%clk 0:01:35]} 16. Bxe6 {[%clk 0:02:17]}  Qxe6 {[%clk 0:01:35]} 17. Rad1 {[%clk 0:02:18]}  Qe7 {[%clk 0:01:28]} 18. Nc4 {[%clk 0:01:17]}  Nc5 {[%clk 0:01:27]} 19. Nb6 {[%clk 0:01:10]}  Rb8 {[%clk 0:01:27]} 20. Nxc8 {[%clk 0:01:09]}  Rfxc8 {[%clk 0:01:21]} 21. Qc4 {[%clk 0:01:07]}  Ne6 {[%clk 0:01:21]} 22. Ne2 {[%clk 0:00:57]}  b5 {[%clk 0:01:17]} 23. Qa2 {[%clk 0:00:57]}  bxa4 {[%clk 0:01:12]} 24. c3 {[%clk 0:00:42]}  a3 {[%clk 0:00:42]} 25. bxa3 {[%clk 0:00:41]}  a4 {[%clk 0:00:37]} 26. Qc4 {[%clk 0:00:40]}  Qxa3 {[%clk 0:00:34]} 27. Ra1 {[%clk 0:00:40]}  Qb3 {[%clk 0:00:34]} 28. Rxa4 {[%clk 0:00:40]}  Qxc4 {[%clk 0:00:33]} 29. Rxc4 {[%clk 0:00:41]}  Bf8 {[%clk 0:00:21]} 30. Nc1 {[%clk 0:00:41]}  Rb1 {[%clk 0:00:19]} 31. Kf1 {[%clk 0:00:39]}  Bd6 {[%clk 0:00:17]} 32. Nd3 {[%clk 0:00:38]}  Rxe1+ {[%clk 0:00:17]} 33. Kxe1 {[%clk 0:00:39]}  Kf8 {[%clk 0:00:17]} 34. Bxh6+ {[%clk 0:00:38]}  Ke7 {[%clk 0:00:16]} 35. Be3 {[%clk 0:00:38]}  Kd7 {[%clk 0:00:10]} 36. Ra4 {[%clk 0:00:39]}  Rb8 {[%clk 0:00:10]} 37. Ra7+ {[%clk 0:00:39]}  Ke8 {[%clk 0:00:10]} 38. h4 {[%clk 0:00:35]}  Rb1+ {[%clk 0:00:09]} 39. Ke2 {[%clk 0:00:36]}  Rb3 {[%clk 0:00:08]} 40. Kd2 {[%clk 0:00:35]}  Rb8 {[%clk 0:00:08]} 41. g3 {[%clk 0:00:34]}  c5 {[%clk 0:00:06]} 42. Kc2 {[%clk 0:00:33]}  c4 {[%clk 0:00:04]} 43. Nb2 {[%clk 0:00:33]}  Bc5 {[%clk 0:00:03]} 44. Bxc5 {[%clk 0:00:19]}  Nxc5 {[%clk 0:00:00]} 45. f3 {[%clk 0:00:19]} 1-0

[Event "December 12 Late 2023"]
[Site "https://www.chess.com"]
[Date "2023.12.12"]
[Round "5"]
[White "Yoo, Christopher Woojin"]
[Black "Martinez Ramirez, Lennis"]
[Result "1-0"]
[Board "13"]
[TimeControl "180+1"]
[WhiteFideId "30909694"]
[BlackFideId "3509079"]
[WhiteElo "3008"]
[BlackElo "2721"]
[WhiteTeam "USA"]
[BlackTeam "CUB"]
[WhiteClock "0:01:11"]
[BlackClock "0:00:46"]

1. d4 {[%clk 0:03:00]}  Nf6 {[%clk 0:02:58]} 2. Nf3 {[%clk 0:03:01]}  d5 {[%clk 0:02:58]} 3. c4 {[%clk 0:03:02]}  e6 {[%clk 0:02:58]} 4. Nc3 {[%clk 0:03:02]}  a6 {[%clk 0:02:55]} 5. cxd5 {[%clk 0:02:59]}  exd5 {[%clk 0:02:56]} 6. Bg5 {[%clk 0:02:59]}  Be6 {[%clk 0:02:55]} 7. Qb3 {[%clk 0:02:59]}  Nc6 {[%clk 0:02:49]} 8. e3 {[%clk 0:02:56]}  Be7 {[%clk 0:02:43]} 9. Bxf6 {[%clk 0:02:51]}  Bxf6 {[%clk 0:02:44]} 10. Qxb7 {[%clk 0:02:50]}  Kd7 {[%clk 0:02:14]} 11. Qb3 {[%clk 0:02:28]}  Qb8 {[%clk 0:02:14]} 12. Qc2 {[%clk 0:02:22]}  Qb4 {[%clk 0:02:12]} 13. a3 {[%clk 0:02:22]}  Qa5 {[%clk 0:02:11]} 14. Be2 {[%clk 0:02:14]}  Rhb8 {[%clk 0:02:06]} 15. O-O {[%clk 0:02:15]}  Ne7 {[%clk 0:01:52]} 16. Na4 {[%clk 0:02:09]}  c6 {[%clk 0:01:47]} 17. Nc5+ {[%clk 0:02:07]}  Ke8 {[%clk 0:01:44]} 18. Qxh7 {[%clk 0:02:06]}  g6 {[%clk 0:01:19]} 19. b4 {[%clk 0:01:25]}  Qc7 {[%clk 0:01:18]} 20. Nxa6 {[%clk 0:01:24]}  Rxa6 {[%clk 0:01:18]} 21. Bxa6 {[%clk 0:01:24]}  Nf5 {[%clk 0:01:13]} 22. g4 {[%clk 0:01:12]}  Nd6 {[%clk 0:01:07]} 23. g5 {[%clk 0:01:12]}  Be7 {[%clk 0:01:05]} 24. Ne5 {[%clk 0:01:11]}  Bxg5 {[%clk 0:00:57]} 25. Qh8+ {[%clk 0:01:10]}  Ke7 {[%clk 0:00:46]} 26. Qxb8 {[%clk 0:01:11]} 1-0

[Event "December 12 Late 2023"]
[Site "https://www.chess.com"]
[Date "2023.12.12"]
[Round "5"]
[White "Sanchez Enriquez, Oscar Gerardo"]
[Black "Smirnov, Anton"]
[Result "0-1"]
[Board "14"]
[TimeControl "180+1"]
[WhiteFideId "5106311"]
[BlackFideId "3208923"]
[WhiteElo "2528"]
[BlackElo "2974"]
[WhiteTeam "MEX"]
[BlackTeam "AUS"]
[WhiteClock "0:00:01"]
[BlackClock "0:01:04"]

1. e4 {[%clk 0:03:00]}  c5 {[%clk 0:02:59]} 2. Nf3 {[%clk 0:03:00]}  d6 {[%clk 0:02:59]} 3. Bc4 {[%clk 0:03:00]}  Nf6 {[%clk 0:02:59]} 4. Qe2 {[%clk 0:03:01]}  Nc6 {[%clk 0:02:56]} 5. h3 {[%clk 0:03:01]}  g6 {[%clk 0:02:52]} 6. O-O {[%clk 0:03:00]}  Bg7 {[%clk 0:02:52]} 7. d3 {[%clk 0:03:01]}  O-O {[%clk 0:02:49]} 8. a3 {[%clk 0:03:00]}  d5 {[%clk 0:02:46]} 9. Ba2 {[%clk 0:02:54]}  e6 {[%clk 0:02:41]} 10. Re1 {[%clk 0:02:39]}  h6 {[%clk 0:02:37]} 11. Nc3 {[%clk 0:02:34]}  b6 {[%clk 0:02:35]} 12. Bf4 {[%clk 0:02:29]}  Bb7 {[%clk 0:02:31]} 13. Rad1 {[%clk 0:02:25]}  Kh7 {[%clk 0:02:29]} 14. Bh2 {[%clk 0:01:59]}  a6 {[%clk 0:02:23]} 15. Ne5 {[%clk 0:01:58]}  d4 {[%clk 0:02:19]} 16. Nxc6 {[%clk 0:01:56]}  Bxc6 {[%clk 0:02:20]} 17. Nb1 {[%clk 0:01:57]}  Qe7 {[%clk 0:02:05]} 18. Nd2 {[%clk 0:01:57]}  e5 {[%clk 0:02:04]} 19. Nc4 {[%clk 0:01:42]}  Nd7 {[%clk 0:02:03]} 20. f4 {[%clk 0:01:37]}  Rac8 {[%clk 0:01:42]} 21. Rf1 {[%clk 0:01:30]}  b5 {[%clk 0:01:37]} 22. Nxe5 {[%clk 0:01:23]}  Nxe5 {[%clk 0:01:37]} 23. fxe5 {[%clk 0:01:23]}  Bd7 {[%clk 0:01:38]} 24. Rf3 {[%clk 0:01:00]}  Be6 {[%clk 0:01:37]} 25. Bxe6 {[%clk 0:00:58]}  fxe6 {[%clk 0:01:37]} 26. Rdf1 {[%clk 0:00:57]}  Rxf3 {[%clk 0:01:36]} 27. Qxf3 {[%clk 0:00:57]}  Rc7 {[%clk 0:01:33]} 28. Bf4 {[%clk 0:00:46]}  c4 {[%clk 0:01:31]} 29. Qf2 {[%clk 0:00:42]}  Rd7 {[%clk 0:01:27]} 30. h4 {[%clk 0:00:38]}  a5 {[%clk 0:01:22]} 31. h5 {[%clk 0:00:32]}  g5 {[%clk 0:01:22]} 32. Bg3 {[%clk 0:00:32]}  Qc5 {[%clk 0:01:13]} 33. Qf3 {[%clk 0:00:26]}  c3 {[%clk 0:01:11]} 34. b3 {[%clk 0:00:15]}  Qxa3 {[%clk 0:01:11]} 35. Qg4 {[%clk 0:00:16]}  Qe7 {[%clk 0:01:11]} 36. Ra1 {[%clk 0:00:13]}  Ra7 {[%clk 0:01:11]} 37. Qf3 {[%clk 0:00:11]}  a4 {[%clk 0:01:11]} 38. bxa4 {[%clk 0:00:11]}  bxa4 {[%clk 0:01:11]} 39. Qf2 {[%clk 0:00:12]}  Qc5 {[%clk 0:01:09]} 40. Rf1 {[%clk 0:00:05]}  a3 {[%clk 0:01:09]} 41. Ra1 {[%clk 0:00:05]}  a2 {[%clk 0:01:09]} 42. Qf3 {[%clk 0:00:05]}  Qb4 {[%clk 0:01:09]} 43. Kh2 {[%clk 0:00:03]}  Qb1 {[%clk 0:01:08]} 44. Rxa2 {[%clk 0:00:03]}  Qxa2 {[%clk 0:01:07]} 45. Qg4 {[%clk 0:00:04]}  Re7 {[%clk 0:01:05]} 46. Bh4 {[%clk 0:00:03]}  gxh4 {[%clk 0:01:04]} 47. Qg6+ {[%clk 0:00:01]}  Kh8 {[%clk 0:01:04]} 0-1

[Event "December 12 Late 2023"]
[Site "https://www.chess.com"]
[Date "2023.12.12"]
[Round "5"]
[White "Chigaev, Maksim"]
[Black "Karacsonyi, Gellert"]
[Result "0-1"]
[Board "22"]
[TimeControl "180+1"]
[WhiteFideId "4108116"]
[BlackFideId "764620"]
[WhiteElo "2903"]
[BlackElo "2657"]
[WhiteTeam "ESP"]
[BlackTeam "HUN"]
[WhiteClock "0:00:03"]
[BlackClock "0:00:43"]

1. d4 {[%clk 0:03:00]}  Nf6 {[%clk 0:02:59]} 2. c4 {[%clk 0:03:00]}  e6 {[%clk 0:03:00]} 3. g4 {[%clk 0:03:00]}  d5 {[%clk 0:02:57]} 4. g5 {[%clk 0:03:00]}  Ne4 {[%clk 0:02:55]} 5. Bg2 {[%clk 0:03:00]}  Be7 {[%clk 0:02:52]} 6. h4 {[%clk 0:02:58]}  c6 {[%clk 0:02:45]} 7. Qd3 {[%clk 0:02:40]}  Nd6 {[%clk 0:02:40]} 8. cxd5 {[%clk 0:02:31]}  exd5 {[%clk 0:02:41]} 9. Nc3 {[%clk 0:02:31]}  O-O {[%clk 0:02:38]} 10. Nf3 {[%clk 0:02:24]}  Bf5 {[%clk 0:02:21]} 11. Qd1 {[%clk 0:02:22]}  Nd7 {[%clk 0:02:17]} 12. Bf4 {[%clk 0:02:16]}  Ne4 {[%clk 0:02:15]} 13. Nd2 {[%clk 0:02:07]}  Nxd2 {[%clk 0:02:11]} 14. Qxd2 {[%clk 0:02:07]}  f6 {[%clk 0:02:05]} 15. a3 {[%clk 0:01:49]}  Nb6 {[%clk 0:02:03]} 16. b3 {[%clk 0:01:49]}  a5 {[%clk 0:02:03]} 17. a4 {[%clk 0:01:24]}  Qd7 {[%clk 0:01:56]} 18. Kf1 {[%clk 0:00:52]}  Rae8 {[%clk 0:01:55]} 19. Kg1 {[%clk 0:00:51]}  Bb4 {[%clk 0:01:52]} 20. e3 {[%clk 0:00:46]}  Nc8 {[%clk 0:01:52]} 21. Rc1 {[%clk 0:00:43]}  Nd6 {[%clk 0:01:52]} 22. Qe2 {[%clk 0:00:40]}  Ne4 {[%clk 0:01:47]} 23. Nxe4 {[%clk 0:00:38]}  Bxe4 {[%clk 0:01:48]} 24. Rh2 {[%clk 0:00:32]}  Bxg2 {[%clk 0:01:40]} 25. Rxg2 {[%clk 0:00:32]}  f5 {[%clk 0:01:41]} 26. Be5 {[%clk 0:00:24]}  f4 {[%clk 0:01:28]} 27. exf4 {[%clk 0:00:23]}  Rxf4 {[%clk 0:01:29]} 28. h5 {[%clk 0:00:22]}  Bd6 {[%clk 0:01:24]} 29. g6 {[%clk 0:00:17]}  h6 {[%clk 0:01:21]} 30. Qd2 {[%clk 0:00:15]}  Bxe5 {[%clk 0:01:18]} 31. dxe5 {[%clk 0:00:15]}  Rg4 {[%clk 0:01:19]} 32. f4 {[%clk 0:00:10]}  Rf8 {[%clk 0:01:13]} 33. Rf1 {[%clk 0:00:04]}  Qf5 {[%clk 0:00:51]} 34. Rxg4 {[%clk 0:00:04]}  Qxg4+ {[%clk 0:00:52]} 35. Qg2 {[%clk 0:00:05]}  Qxh5 {[%clk 0:00:53]} 36. e6 {[%clk 0:00:02]}  Qf5 {[%clk 0:00:49]} 37. e7 {[%clk 0:00:02]}  Re8 {[%clk 0:00:49]} 38. Re1 {[%clk 0:00:03]}  Qf6 {[%clk 0:00:50]} 39. Qe2 {[%clk 0:00:03]}  Qxg6+ {[%clk 0:00:50]} 40. Kf2 {[%clk 0:00:03]}  Qf6 {[%clk 0:00:48]} 41. Kg3 {[%clk 0:00:03]}  Kf7 {[%clk 0:00:46]} 42. Qh5+ {[%clk 0:00:03]}  Qg6+ {[%clk 0:00:43]} 43. Qg5 {[%clk 0:00:03]}  hxg5 {[%clk 0:00:43]} 0-1

[Event "December 12 Late 2023"]
[Site "https://www.chess.com"]
[Date "2023.12.12"]
[Round "5"]
[White "Manukyan, Sargis A."]
[Black "Rasulov, Vugar"]
[Result "0-1"]
[Board "23"]
[TimeControl "180+1"]
[WhiteFideId "13303970"]
[BlackFideId "13402390"]
[WhiteElo "2642"]
[BlackElo "2893"]
[WhiteTeam "ARM"]
[BlackTeam "AZE"]
[WhiteClock "0:00:00"]
[BlackClock "0:00:21"]

1. d4 {[%clk 0:03:00]}  Nf6 {[%clk 0:02:59]} 2. c4 {[%clk 0:03:01]}  e6 {[%clk 0:03:00]} 3. Nc3 {[%clk 0:03:01]}  Bb4 {[%clk 0:02:59]} 4. e3 {[%clk 0:03:00]}  O-O {[%clk 0:02:58]} 5. a3 {[%clk 0:03:00]}  Bxc3+ {[%clk 0:02:58]} 6. bxc3 {[%clk 0:03:01]}  Nc6 {[%clk 0:02:52]} 7. Bd3 {[%clk 0:03:00]}  e5 {[%clk 0:02:51]} 8. Ne2 {[%clk 0:02:54]}  d5 {[%clk 0:02:42]} 9. cxd5 {[%clk 0:02:50]}  Qxd5 {[%clk 0:02:42]} 10. O-O {[%clk 0:02:48]}  Qd6 {[%clk 0:02:43]} 11. e4 {[%clk 0:02:37]}  Rd8 {[%clk 0:02:33]} 12. f4 {[%clk 0:02:19]}  exd4 {[%clk 0:01:44]} 13. e5 {[%clk 0:02:19]}  Qc5 {[%clk 0:01:45]} 14. exf6 {[%clk 0:02:17]}  dxc3+ {[%clk 0:01:45]} 15. Kh1 {[%clk 0:02:18]}  Bf5 {[%clk 0:01:44]} 16. Ng3 {[%clk 0:01:44]}  Bxd3 {[%clk 0:01:34]} 17. Qg4 {[%clk 0:01:38]}  g6 {[%clk 0:01:34]} 18. Rg1 {[%clk 0:00:58]}  Re8 {[%clk 0:01:18]} 19. Qh4 {[%clk 0:00:43]}  Re6 {[%clk 0:01:15]} 20. a4 {[%clk 0:00:33]}  Qd4 {[%clk 0:01:09]} 21. Qh6 {[%clk 0:00:07]}  Qxf6 {[%clk 0:01:07]} 22. f5 {[%clk 0:00:07]}  Bxf5 {[%clk 0:00:59]} 23. Bg5 {[%clk 0:00:07]}  Qg7 {[%clk 0:00:58]} 24. Qh4 {[%clk 0:00:07]}  Qd4 {[%clk 0:00:52]} 25. Bf4 {[%clk 0:00:03]}  c2 {[%clk 0:00:46]} 26. Raf1 {[%clk 0:00:03]}  Bd3 {[%clk 0:00:40]} 27. Qg5 {[%clk 0:00:02]}  Rae8 {[%clk 0:00:32]} 28. Re1 {[%clk 0:00:01]}  Rxe1 {[%clk 0:00:30]} 29. Nf1 {[%clk 0:00:01]}  Rxf1 {[%clk 0:00:29]} 30. Be3 {[%clk 0:00:02]}  Rxg1+ {[%clk 0:00:28]} 31. Bxg1 {[%clk 0:00:00]}  Qe5 {[%clk 0:00:21]} 0-1

[Event "December 12 Late 2023"]
[Site "https://www.chess.com"]
[Date "2023.12.12"]
[Round "5"]
[White "Kovalev, Vladislav"]
[Black "Vlassov, Nikolai"]
[Result "1-0"]
[Board "24"]
[TimeControl "180+1"]
[WhiteFideId "13504398"]
[BlackFideId "4103360"]
[WhiteElo "2890"]
[BlackElo "2633"]
[WhiteTeam "FID"]
[BlackTeam "FID"]
[WhiteClock "0:00:03"]
[BlackClock "0:00:00"]

1. e4 {[%clk 0:03:00]}  Nc6 {[%clk 0:02:59]} 2. d4 {[%clk 0:03:00]}  d5 {[%clk 0:02:57]} 3. Nc3 {[%clk 0:03:00]}  e5 {[%clk 0:02:55]} 4. dxe5 {[%clk 0:02:49]}  d4 {[%clk 0:02:55]} 5. Nd5 {[%clk 0:02:48]}  f5 {[%clk 0:02:55]} 6. exf6 {[%clk 0:02:44]}  Nxf6 {[%clk 0:02:55]} 7. Nxf6+ {[%clk 0:02:32]}  Qxf6 {[%clk 0:02:54]} 8. Nf3 {[%clk 0:02:17]}  Bg4 {[%clk 0:02:49]} 9. h3 {[%clk 0:02:17]}  Bb4+ {[%clk 0:02:38]} 10. Bd2 {[%clk 0:02:16]}  Bxd2+ {[%clk 0:02:34]} 11. Kxd2 {[%clk 0:02:16]}  Qf4+ {[%clk 0:02:26]} 12. Ke1 {[%clk 0:02:12]}  Qxe4+ {[%clk 0:02:26]} 13. Qe2 {[%clk 0:02:10]}  Bxf3 {[%clk 0:02:26]} 14. gxf3 {[%clk 0:02:11]}  Qxe2+ {[%clk 0:02:25]} 15. Bxe2 {[%clk 0:02:12]}  O-O {[%clk 0:02:19]} 16. Bc4+ {[%clk 0:02:07]}  Kh8 {[%clk 0:02:18]} 17. Bd5 {[%clk 0:02:07]}  Rae8+ {[%clk 0:02:02]} 18. Kd2 {[%clk 0:02:07]}  Ne5 {[%clk 0:01:42]} 19. Bxb7 {[%clk 0:02:07]}  Rb8 {[%clk 0:01:18]} 20. Be4 {[%clk 0:02:03]}  Nxf3+ {[%clk 0:01:10]} 21. Kd3 {[%clk 0:01:36]}  Rxb2 {[%clk 0:00:59]} 22. Rhb1 {[%clk 0:01:30]}  Rxb1 {[%clk 0:00:54]} 23. Rxb1 {[%clk 0:01:31]}  Ng5 {[%clk 0:00:54]} 24. Kxd4 {[%clk 0:00:43]}  h5 {[%clk 0:00:46]} 25. f4 {[%clk 0:00:10]}  Ne6+ {[%clk 0:00:33]} 26. Ke5 {[%clk 0:00:10]}  Nxf4 {[%clk 0:00:32]} 27. h4 {[%clk 0:00:11]}  Ne2 {[%clk 0:00:21]} 28. Bg6 {[%clk 0:00:10]}  Nf4 {[%clk 0:00:19]} 29. Be4 {[%clk 0:00:08]}  Ne2 {[%clk 0:00:19]} 30. Bg6 {[%clk 0:00:08]}  Nf4 {[%clk 0:00:18]} 31. Bf5 {[%clk 0:00:09]}  Ne2 {[%clk 0:00:14]} 32. Rb7 {[%clk 0:00:06]}  Re8+ {[%clk 0:00:09]} 33. Kd5 {[%clk 0:00:05]}  Nc3+ {[%clk 0:00:06]} 34. Kc4 {[%clk 0:00:05]}  Nxa2 {[%clk 0:00:05]} 35. Rxa7 {[%clk 0:00:04]}  Nc1 {[%clk 0:00:00]} 36. Bg6 {[%clk 0:00:03]} 1-0